bitfinex/quotes_SOLUSD_20250805
["timestamp","ask_amount","ask_price","bid_price","bid_amount"]
[1754379933772,49.52000001,166.43,166.41,17.35717936]
[1754379934081,49.52000001,166.43,166.39,89.68997656]
[1754379934082,0.71,166.42,166.4,17.35717936]
[1754379934585,49.52000001,166.43,166.4,17.35717936]
[1754379934875,50.23000001,166.43,166.4,17.35717936]
[1754379935484,5.71000001,166.43,166.39,6.00997656]
[1754379935669,0.71,166.42,166.38,89.01021148]
[1754379935852,5.00000001,166.43,166.38,89.01021148]
[1754379935853,0.71,166.41,166.39,17.35717936]
[1754379936056,5.71000001,166.43,166.4,6.00961538]
[1754379936358,5.71000001,166.43,166.38,83.0]
[1754379936359,15.10621557,166.41,166.38,17.35717936]
[1754379936685,5.0,166.42,166.39,0.68]
[1754379936876,5.0,166.42,166.41,17.35717936]
[1754379937491,5.0,166.42,166.41,18.03717936]
[1754379938185,5.0,166.42,166.41,24.04643361]
[1754379938371,5.0,166.42,166.41,23.36643361]
[1754379938878,5.0,166.42,166.41,17.35717936]
[1754379939177,5.0,166.42,166.41,18.03717936]
[1754379940379,5.0,166.42,166.41,24.04643361]
[1754379941058,5.00000001,166.43,166.41,24.64735903]
[1754379941259,1e-08,166.43,166.42,62.65934093]
[1754379941568,0.03,166.45,166.42,62.51717936]
[1754379941779,0.03,166.45,166.44,17.35717936]
[1754379942288,0.03,166.45,166.44,23.36535047]
[1754379942458,0.74,166.45,166.44,17.35717936]
[1754379942664,0.03,166.45,166.44,17.35717936]
[1754379943477,0.74,166.45,166.42,23.36607252]
[1754379943686,15.10621557,166.43,166.38,44.48]
[1754379943865,62.54717936,166.42,166.35,21.03947205]
[1754379944072,0.71,166.41,166.37,17.35717936]
[1754379944292,44.48,166.42,166.39,23.36704924]
[1754379944470,45.19,166.42,166.39,23.36704924]
[1754379944785,44.48,166.42,166.39,23.36704924]
[1754379945007,31.14216157,166.47,166.39,23.36704924]
[1754379945008,0.1,166.55,166.41,104.14307616]
[1754379945222,1e-08,166.59,166.57,26.0]
[1754379945437,0.1,166.62,166.61,26.0]
[1754379945577,1e-08,166.65,166.61,105.17435872]
[1754379945787,1e-08,166.65,166.64,34.71435872]
[1754379945980,0.03,166.71,166.67,26.0]
[1754379946218,0.03,166.71,166.64,3.66030873]
[1754379946386,0.74,166.71,166.7,17.35717936]
[1754379946790,0.74,166.71,166.68,26.599952]
[1754379946791,0.74,166.71,166.68,71.359952]
[1754379946993,0.71,166.7,166.68,26.0]
[1754379947192,0.03,166.71,166.66,44.8]
[1754379947504,0.03,166.71,166.7,25.74182367]
[1754379947710,0.03,166.71,166.7,70.74182367]
[1754379947911,0.03,166.77,166.73,26.0]
[1754379948220,0.03,166.77,166.74,25.74182367]
[1754379948421,0.03,166.77,166.74,76.93918483]
[1754379948600,0.03,166.77,166.74,51.19736116]
[1754379948800,0.03,166.77,166.74,76.93918483]
[1754379949000,0.03,166.77,166.76,26.0]
[1754379949343,1e-08,166.77,166.76,52.34148785]
[1754379949699,1e-08,166.77,166.76,97.58148785]
[1754379950231,12.0677373,166.81,166.8,25.74182367]
[1754379950409,12.0677373,166.81,166.8,77.0570275]
[1754379950808,12.0677373,166.81,166.8,51.31520383]
[1754379951010,0.03,166.85,166.8,77.0570275]
[1754379951225,0.03,166.85,166.84,25.74182367]
[1754379951398,0.03,166.85,166.84,71.10182367]
[1754379951602,0.03,166.85,166.84,71.12182367]
[1754379952210,0.03,166.85,166.84,73.32212574]
[1754379952411,0.03,166.85,166.84,79.31589222]
[1754379952646,0.03,166.85,166.84,79.29589222]
[1754379953215,0.74,166.85,166.84,47.54030207]
[1754379953435,0.74,166.85,166.84,71.08182367]
[1754379953752,0.74,166.85,166.84,25.74182367]
[1754379953753,0.03,166.85,166.84,25.74182367]
[1754379954027,0.03,166.85,166.84,71.06182367]
[1754379954508,0.74,166.85,166.84,71.06182367]
[1754379954835,0.03,166.85,166.84,29.89452399]
[1754379955037,0.03,166.85,166.84,75.19452399]
[1754379955238,0.03,166.85,166.84,75.19337871]
[1754379955412,0.03,166.85,166.84,25.74182367]
[1754379955619,0.03,166.85,166.84,75.16662292]
[1754379955839,0.03,166.85,166.84,25.74182367]
[1754379956144,0.03,166.85,166.84,71.02182367]
[1754379956929,0.74,166.85,166.84,71.00182367]
[1754379957538,0.03,166.85,166.84,71.00182367]
[1754379957739,5.03,166.85,166.84,71.00182367]
[1754379958245,5.74,166.85,166.84,45.2]
[1754379958419,20.84621557,166.85,166.84,70.94182367]
[1754379958742,20.84621557,166.85,166.84,25.74182367]
[1754379959043,15.10621557,166.84,166.8,26.0]
[1754379959215,0.68,166.83,166.77,5.9962823]
[1754379959420,15.10621557,166.82,166.78,45.2]
[1754379959736,15.10621557,166.82,166.81,25.74182367]
[1754379959940,15.10621557,166.82,166.81,70.92182367]
[1754379960163,0.68,166.82,166.81,25.74182367]
[1754379960357,0.68,166.82,166.81,70.90182367]
[1754379960541,15.10621557,166.84,166.81,70.90182367]
[1754379960739,15.78621557,166.84,166.83,25.74182367]
[1754379960941,15.78621557,166.84,166.83,45.16]
[1754379961151,15.78621557,166.84,166.83,70.90182367]
[1754379961537,5.03,166.85,166.83,158.40182367]
[1754379961752,5.03,166.85,166.84,25.74182367]
[1754379961967,26.12962282,166.85,166.84,113.24182367]
[1754379962143,20.13621557,166.85,166.84,87.5]
[1754379962348,20.13621557,166.85,166.84,113.24182367]
[1754379962548,0.1,166.87,166.86,82.47]
[1754379962858,0.1,166.87,166.86,153.37182367]
[1754379963338,0.78,166.87,166.86,70.90182367]
[1754379963533,0.1,166.87,166.86,70.90182367]
[1754379963951,0.78,166.87,166.86,70.90182367]
[1754379964355,0.78,166.87,166.86,25.74182367]
[1754379964552,0.78,166.87,166.86,70.90182367]
[1754379964759,0.78,166.87,166.84,25.74182367]
[1754379964955,6.77268891,166.87,166.84,25.74182367]
[1754379965161,0.68,166.86,166.83,45.16]
[1754379965464,15.34837714,166.87,166.85,25.74182367]
[1754379965660,15.34837714,166.87,166.86,25.74182367]
[1754379966040,21.87890448,166.87,166.85,25.74182367]
[1754379966242,0.68,166.86,166.78,5.99592277]
[1754379966441,15.10621557,166.85,166.79,45.12]
[1754379966742,15.10621557,166.85,166.84,25.74182367]
[1754379966944,0.78,166.87,166.84,25.74182367]
[1754379967140,15.78621557,166.86,166.85,25.74182367]
[1754379967444,0.1,166.87,166.85,70.88182367]
[1754379967760,0.1,166.87,166.86,25.74182367]
[1754379968650,0.1,166.87,166.86,17.24768823]
[1754379968875,0.78,166.87,166.86,17.24768823]
[1754379969085,0.78,166.87,166.86,62.36768823]
[1754379970065,0.1,166.87,166.86,62.36768823]
[1754379970643,0.1,166.87,166.86,68.36073629]
[1754379971544,0.1,166.87,166.86,68.30073629]
[1754379972044,0.1,166.87,166.86,17.24768823]
[1754379972267,0.1,166.87,166.86,62.28768823]
[1754379972462,0.1,166.87,166.86,45.04]
[1754379972669,0.1,166.87,166.86,62.28768823]
[1754379973248,0.1,166.87,166.86,62.24768823]
[1754379973449,0.78,166.87,166.86,62.24768823]
[1754379973850,0.78,166.87,166.86,17.24768823]
[1754379974050,16.02837714,166.87,166.81,0.06]
[1754379974268,15.10621557,166.85,166.83,17.24768823]
[1754379974465,15.10621557,166.85,166.82,45.0]
[1754379974466,0.68,166.84,166.82,45.0]
[1754379974666,0.68,166.84,166.83,17.24768823]
[1754379974862,15.20621557,166.87,166.83,17.24768823]
[1754379975075,15.20621557,166.87,166.86,17.24768823]
[1754379975246,15.88621557,166.87,166.84,44.98]
[1754379975666,0.68,166.86,166.84,44.98]
[1754379975852,0.68,166.86,166.85,17.24768823]
[1754379976057,15.10621557,166.86,166.85,17.24768823]
[1754379976349,0.1,166.87,166.85,17.24768823]
[1754379976549,0.1,166.87,166.86,17.24768823]
[1754379977265,0.78,166.87,166.86,17.24768823]
[1754379977662,0.1,166.87,166.86,17.24768823]
[1754379977969,0.1,166.87,166.86,23.24073629]
[1754379979181,0.1,166.87,166.85,50.97332491]
[1754379979358,0.1,166.87,166.86,17.24768823]
[1754379980351,0.1,166.87,166.86,23.24073629]
[1754379981655,0.1,166.87,166.86,17.24768823]
[1754379982982,0.1,166.87,166.83,26.0]
[1754379982983,0.78,166.87,166.83,26.0]
[1754379983164,0.68,166.86,166.84,17.24768823]
[1754379983482,15.20621557,166.87,166.85,17.24768823]
[1754379983857,15.10621557,166.86,166.83,50.79411951]
[1754379984085,15.78621557,166.85,166.84,17.24768823]
[1754379984756,0.68,166.85,166.84,17.24768823]
[1754379985263,0.68,166.85,166.84,21.37574506]
[1754379985986,17.92768823,166.85,166.81,0.06]
[1754379986307,17.3898498,166.82,166.81,2.25941599]
[1754379986474,17.3898498,166.82,166.81,0.06]
[1754379986786,18.0698498,166.82,166.81,0.06]
[1754379987360,0.82216157,166.82,166.81,4.20732888]
[1754379987588,18.0698498,166.82,166.81,4.20732888]
[1754379987962,39.17055044,166.82,166.81,4.20732888]
[1754379988162,39.17055044,166.82,166.81,0.06]
[1754379988388,39.17055044,166.82,166.81,6.4314412]
[1754379988685,39.17055044,166.82,166.81,4.2198102]
[1754379988876,15.24837714,166.81,166.79,0.06]
[1754379989072,15.24837714,166.8,166.79,0.06]
[1754379989390,33.17606537,166.8,166.79,2.27172884]
[1754379989575,33.17606537,166.8,166.79,0.06]
[1754379990485,39.1712692,166.8,166.79,0.06]
[1754379993782,21.24358097,166.8,166.79,0.06]
[1754379993996,39.1712692,166.8,166.79,0.06]
[1754379996910,15.24837714,166.8,166.79,0.06]
[1754379997087,15.10621557,166.8,166.79,0.06]
[1754379997275,44.62,166.81,166.79,17.30768823]
[1754379997587,44.62,166.81,166.79,17.98768823]
[1754379997794,0.68,166.85,166.8,17.24768823]
[1754379997979,59.72621557,166.84,166.81,17.24768823]
[1754379998180,59.72621557,166.84,166.82,17.24768823]
[1754379998580,44.62,166.84,166.82,17.24768823]
[1754379998806,44.62,166.84,166.81,0.68]
[1754379999104,15.10621557,166.83,166.81,17.24768823]
[1754379999312,15.10621557,166.83,166.82,17.24768823]
[1754379999525,44.62,166.84,166.82,17.24768823]
[1754379999677,59.72621557,166.84,166.83,17.24768823]
[1754380000005,59.70621557,166.86,166.83,17.24768823]
[1754380001884,59.70621557,166.86,166.83,23.24179348]
[1754380002082,59.70621557,166.86,166.84,17.24768823]
[1754380002306,0.1,166.87,166.85,17.24768823]
[1754380002527,0.1,166.87,166.86,17.24768823]
[1754380002682,0.1,166.87,166.84,0.68]
[1754380002885,0.1,166.87,166.86,17.24768823]
[1754380003392,0.1,166.87,166.86,23.92073629]
[1754380004013,0.1,166.87,166.86,23.24073629]
[1754380004309,0.1,166.87,166.86,23.92073629]
[1754380006311,0.1,166.87,166.86,5.99304806]
[1754380006517,0.1,166.87,166.86,23.24073629]
[1754380006736,0.1,166.87,166.81,0.68]
[1754380006890,0.1,166.87,166.86,17.24768823]
[1754380007317,0.1,166.87,166.85,17.24768823]
[1754380007526,0.1,166.87,166.82,21.66069775]
[1754380007527,0.1,166.87,166.83,0.68]
[1754380007994,0.1,166.87,166.85,17.24768823]
[1754380008196,0.1,166.87,166.82,5.99448507]
[1754380008197,0.1,166.87,166.86,17.24768823]
[1754380008416,0.1,166.87,166.83,0.68]
[1754380008615,0.1,166.87,166.86,17.24768823]
[1754380009621,0.1,166.87,166.86,23.92073629]
[1754380011819,0.1,166.87,166.86,23.24073629]
[1754380014914,0.1,166.87,166.86,23.92073629]
[1754380015413,0.1,166.87,166.86,23.24073629]
[1754380018710,0.79,166.87,166.83,44.44]
[1754380019036,15.20621557,166.87,166.86,17.24768823]
[1754380019424,15.89621557,166.87,166.86,17.24768823]
[1754380020321,15.20621557,166.87,166.86,17.24768823]
[1754380020724,15.20621557,166.87,166.81,0.06]
[1754380020725,15.10621557,166.86,166.81,0.06]
[1754380020926,0.14216157,166.85,166.82,87.5]
[1754380021127,15.79621557,166.84,166.82,87.5]
[1754380021337,15.79621557,166.83,166.82,87.5]
[1754380022358,15.93837714,166.83,166.82,87.5]
[1754380022926,15.79621557,166.83,166.82,87.5]
[1754380023126,15.10621557,166.83,166.82,93.49448507]
[1754380023738,15.10621557,166.82,166.81,23.3024196]
[1754380024461,15.10621557,166.82,166.81,6.05473137]
[1754380024621,15.10621557,166.82,166.81,23.3024196]
[1754380026126,0.69,166.86,166.81,23.3024196]
[1754380026325,33.0439038,166.85,166.81,0.06]
[1754380026556,15.10621557,166.83,166.81,0.06]
[1754380026858,15.10621557,166.83,166.81,17.30768823]
[1754380027026,0.69,166.83,166.81,17.30768823]
[1754380027228,0.83216157,166.85,166.81,17.30768823]
[1754380027747,15.10621557,166.83,166.81,17.30768823]
[1754380028121,15.10621557,166.83,166.81,23.30219134]
[1754380029643,15.10621557,166.83,166.81,6.05450311]
[1754380029845,15.10621557,166.83,166.81,23.30219134]
[1754380030450,0.69,166.83,166.81,6.05450311]
[1754380030755,0.69,166.82,166.81,110.80219134]
[1754380031456,15.10621557,166.83,166.81,110.80219134]
[1754380032751,0.69,166.83,166.81,93.55450311]
[1754380032952,0.69,166.83,166.81,104.34341352]
[1754380033463,15.10621557,166.83,166.82,10.78891041]
[1754380033633,15.10621557,166.83,166.81,93.55450311]
[1754380033834,15.10621557,166.83,166.82,10.78891041]
[1754380034370,15.10621557,166.83,166.82,16.78339548]
[1754380034551,15.10621557,166.83,166.81,93.55473223]
[1754380034740,15.79621557,166.83,166.81,104.34372677]
[1754380035336,15.79621557,166.83,166.81,16.84372677]
[1754380035647,0.69,166.82,166.81,16.84372677]
[1754380035858,15.79621557,166.83,166.81,16.84372677]
[1754380036062,15.79621557,166.83,166.81,0.06]
[1754380036264,15.79621557,166.83,166.81,10.84891041]
[1754380036751,15.79621557,166.83,166.81,16.84370411]
[1754380037366,15.79621557,166.83,166.82,10.78891041]
[1754380037569,15.79621557,166.83,166.81,16.84370411]
[1754380038464,15.10621557,166.83,166.82,5.99448507]
[1754380038658,15.79621557,166.83,166.81,16.84363072]
[1754380038864,15.79621557,166.83,166.81,10.84891041]
[1754380040967,15.10621557,166.83,166.81,16.84366995]
[1754380042369,15.10621557,166.83,166.82,16.78339548]
[1754380044268,15.10621557,166.83,166.82,5.99448507]
[1754380044563,15.10621557,166.83,166.82,16.78339548]
[1754380044972,0.79,166.87,166.82,104.94339548]
[1754380045265,15.10621557,166.86,166.85,10.78891041]
[1754380046073,0.1,166.87,166.85,11.44891041]
[1754380046243,0.1,166.87,166.86,10.78891041]
[1754380046681,15.89621557,166.87,166.86,10.78891041]
[1754380046864,15.20621557,166.87,166.86,10.78891041]
[1754380047243,15.20621557,166.87,166.86,16.78195847]
[1754380047462,0.1,166.87,166.86,104.28195847]
[1754380048054,0.1,166.87,166.86,148.70195847]
[1754380049568,0.1,166.87,166.86,149.36195847]
[1754380051183,17.59163367,166.87,166.81,0.06]
[1754380051354,15.10621557,166.84,166.81,0.06]
[1754380051554,10.78891041,166.82,166.81,0.06]
[1754380051755,26.03728755,166.82,166.81,0.06]
[1754380051970,26.74728755,166.82,166.81,0.06]
[1754380052779,15.95837714,166.82,166.81,0.06]
[1754380053787,26.74728755,166.82,166.81,0.06]
[1754380054086,32.74177262,166.82,166.81,0.06]
[1754380054389,77.14177262,166.82,166.81,0.06]
[1754380055088,0.71,166.86,166.81,11.50891041]
[1754380055303,0.1,166.87,166.85,10.78891041]
[1754380055466,0.1,166.87,166.82,0.66]
[1754380055467,0.1,166.87,166.86,10.78891041]
[1754380056152,0.1,166.87,166.86,11.44891041]
[1754380056755,0.1,166.87,166.86,17.90528539]
[1754380056960,0.1,166.87,166.86,23.89833345]
[1754380057577,0.1,166.87,166.86,23.23833345]
[1754380057782,0.1,166.87,166.84,26.0]
[1754380057989,0.81,166.87,166.86,17.24528539]
[1754380058885,0.81,166.87,166.84,44.4]
[1754380059069,0.1,166.87,166.86,17.24528539]
[1754380060003,0.1,166.87,166.85,5.99340725]
[1754380060166,0.1,166.87,166.86,17.24528539]
[1754380060572,0.1,166.87,166.85,23.23869264]
[1754380060791,0.71,166.86,166.85,17.24528539]
[1754380060994,0.1,166.87,166.85,23.23869264]
[1754380061294,0.1,166.87,166.86,17.24528539]
[1754380061885,0.1,166.87,166.85,5.99340725]
[1754380062093,0.81,166.87,166.85,5.99340725]
[1754380062388,0.1,166.87,166.85,93.49340725]
[1754380063275,0.1,166.87,166.85,87.5]
[1754380063776,0.71,166.86,166.82,157.88]
[1754380063986,0.71,166.85,166.82,17.24528539]
[1754380064170,0.71,166.84,166.82,17.24528539]
[1754380064701,0.71,166.84,166.81,6.05478278]
[1754380064702,0.71,166.83,166.81,0.06]
[1754380064885,32.49366253,166.82,166.81,0.06]
[1754380065077,38.4881476,166.82,166.81,0.06]
[1754380065286,39.1981476,166.82,166.81,0.06]
[1754380066576,21.95286221,166.82,166.81,0.06]
[1754380066775,39.1981476,166.82,166.81,0.06]
[1754380068004,21.95286221,166.82,166.81,0.06]
[1754380068187,39.1981476,166.82,166.81,0.06]
[1754380069072,21.95286221,166.82,166.81,0.06]
[1754380069479,39.1981476,166.82,166.81,0.06]
[1754380069701,77.58366253,166.82,166.81,0.06]
[1754380069882,59.48621557,166.82,166.81,0.06]
[1754380070083,59.62837714,166.82,166.81,0.06]
[1754380071491,60.33837714,166.82,166.81,0.06]
[1754380072506,59.62837714,166.82,166.81,0.06]
[1754380073299,60.33837714,166.82,166.81,0.06]
[1754380074389,59.62837714,166.82,166.81,0.06]
[1754380074591,59.48621557,166.82,166.81,17.30528539]
[1754380074899,15.10621557,166.82,166.81,17.30528539]
[1754380076778,15.10621557,166.82,166.81,10.84991285]
[1754380078402,15.13621557,166.82,166.81,10.84991285]
[1754380078980,15.13621557,166.82,166.81,0.06]
[1754380079187,15.13621557,166.82,166.81,10.84991285]
[1754380079606,15.13621557,166.82,166.81,16.84475728]
[1754380079812,0.03,166.82,166.81,16.84475728]
[1754380080110,0.03,166.82,166.81,10.84991285]
[1754380080315,0.03,166.82,166.81,16.84475728]
[1754380080701,0.89216157,166.82,166.81,0.06]
[1754380081018,21.99286221,166.82,166.81,0.06]
[1754380081196,32.78277506,166.82,166.81,0.06]
[1754380082993,26.78828999,166.82,166.81,0.06]
[1754380083211,32.78277506,166.82,166.81,0.06]
[1754380083693,73.76898774,166.82,166.79,0.06]
[1754380084014,52.03828999,166.8,166.79,0.06]
[1754380084419,52.75828999,166.8,166.79,0.06]
[1754380084939,58.75349382,166.8,166.79,0.06]
[1754380091505,15.10621557,166.8,166.79,0.06]
[1754380092231,15.24837714,166.8,166.79,0.06]
[1754380092420,26.03828999,166.8,166.79,0.06]
[1754380092618,15.24837714,166.8,166.79,0.06]
[1754380092926,26.03828999,166.8,166.79,0.06]
[1754380093322,15.24837714,166.8,166.79,0.06]
[1754380095203,32.75349382,166.8,166.79,0.06]
[1754380095409,15.24837714,166.8,166.79,0.06]
[1754380095612,59.56837714,166.8,166.79,0.06]
[1754380099045,60.28837714,166.8,166.79,0.06]
[1754380099216,71.07828999,166.8,166.79,0.06]
[1754380099717,77.07349382,166.8,166.79,0.06]
[1754380100513,21.96358097,166.8,166.79,0.06]
[1754380100847,71.05828999,166.8,166.79,0.06]
[1754380101217,59.54837714,166.8,166.79,0.06]
[1754380102615,59.40621557,166.8,166.79,0.06]
[1754380102818,15.10621557,166.8,166.79,11.49991285]
[1754380103428,15.10621557,166.8,166.79,17.49547613]
[1754380104043,15.10621557,166.81,166.79,6.70556328]
[1754380104246,15.10621557,166.81,166.8,11.43991285]
[1754380104941,15.10621557,166.81,166.8,0.65]
[1754380105142,0.03,166.82,166.8,11.43991285]
[1754380105321,15.13621557,166.82,166.81,17.43475728]
[1754380105659,0.03,166.82,166.81,17.43475728]
[1754380105961,0.03,166.82,166.81,104.93475728]
[1754380106521,0.03,166.82,166.81,94.14484443]
[1754380106736,0.03,166.82,166.81,104.93475728]
[1754380107255,0.03,166.82,166.81,94.14484443]
[1754380107421,0.03,166.82,166.81,104.93475728]
[1754380108238,0.03,166.84,166.83,26.0]
[1754380108540,0.03,166.84,166.83,36.78991285]
[1754380108742,0.03,166.84,166.83,37.48991285]
[1754380109123,0.03,166.84,166.83,81.76991285]
[1754380109522,0.03,166.84,166.83,87.7640386]
[1754380110358,0.03,166.84,166.83,61.7640386]
[1754380110594,0.03,166.84,166.83,16.7840386]
[1754380111047,0.03,166.84,166.83,43.4840386]
[1754380111786,0.03,166.84,166.83,16.7840386]
[1754380112451,0.03,166.84,166.83,43.4840386]
[1754380112656,0.03,166.84,166.83,87.7240386]
[1754380113673,0.03,166.84,166.83,175.2240386]
[1754380115177,0.03,166.84,166.83,16.7840386]
[1754380116177,0.03,166.84,166.83,5.99412575]
[1754380116379,0.03,166.84,166.83,16.7840386]
[1754380117474,0.03,166.84,166.83,17.4840386]
[1754380117668,0.03,166.84,166.83,50.93412575]
[1754380117870,0.03,166.84,166.83,61.7240386]
[1754380118475,1e-08,166.84,166.83,61.7240386]
[1754380119375,1e-08,166.84,166.83,149.2240386]
[1754380120057,0.1,166.87,166.85,87.49999999]
[1754380120256,0.1,166.87,166.86,81.00991285]
[1754380120458,0.1,166.87,166.86,70.22]
[1754380120789,0.1,166.87,166.86,55.00991285]
[1754380121477,0.1,166.87,166.86,16.78296091]
[1754380121676,15.89621557,166.87,166.85,50.21328714]
[1754380121881,15.20621557,166.87,166.84,16.78355258]
[1754380122085,0.69,166.86,166.84,16.78355258]
[1754380122382,0.79,166.87,166.85,10.78991285]
[1754380122573,0.79,166.87,166.86,10.78991285]
[1754380123462,15.89621557,166.87,166.86,16.78296091]
[1754380124482,15.20621557,166.87,166.86,16.78296091]
[1754380125670,15.89621557,166.87,166.86,16.78296091]
[1754380126385,15.20621557,166.87,166.86,16.78296091]
[1754380126686,15.89621557,166.87,166.86,16.78296091]
[1754380126878,15.89621557,166.87,166.86,10.78991285]
[1754380127193,15.10621557,166.86,166.84,16.7834381]
[1754380127385,15.79621557,166.85,166.84,16.7834381]
[1754380128179,15.10621557,166.85,166.84,16.7834381]
[1754380129196,15.10621557,166.85,166.84,5.99352525]
[1754380129393,15.10621557,166.85,166.84,16.7834381]
[1754380130089,15.79621557,166.85,166.84,5.99352525]
[1754380130393,15.10621557,166.85,166.84,16.7834381]
[1754380130890,15.10621557,166.85,166.84,5.99352525]
[1754380131268,15.79621557,166.85,166.84,16.7834381]
[1754380132708,15.10621557,166.84,166.82,16.84412941]
[1754380132875,15.79621557,166.83,166.82,0.06]
[1754380133875,15.93837714,166.83,166.82,0.06]
[1754380134770,26.72828999,166.83,166.82,0.06]
[1754380135099,15.93837714,166.83,166.82,0.06]
[1754380136186,26.72828999,166.83,166.82,0.06]
[1754380136391,15.93837714,166.83,166.82,0.06]
[1754380136601,26.72828999,166.83,166.82,0.06]
[1754380137299,15.93837714,166.83,166.82,0.06]
[1754380137793,26.72828999,166.83,166.82,0.06]
[1754380138677,32.72241574,166.83,166.82,0.06]
[1754380139099,15.93837714,166.83,166.82,0.06]
[1754380139289,26.72828999,166.83,166.82,0.06]
[1754380139686,32.72241574,166.83,166.82,0.06]
[1754380140207,40.37160368,166.83,166.82,0.06]
[1754380140985,44.34578683,166.83,166.82,0.06]
[1754380141489,88.50578683,166.83,166.82,0.06]
[1754380141903,84.53160368,166.83,166.82,0.06]
[1754380142106,88.50497731,166.83,166.82,0.06]
[1754380142715,77.71506446,166.83,166.82,0.06]
[1754380143008,88.50497731,166.83,166.82,0.06]
[1754380144016,71.72093871,166.83,166.82,0.06]
[1754380144209,22.75540351,166.83,166.82,0.06]
[1754380144385,77.82747793,166.83,166.82,0.06]
[1754380144581,78.34531636,166.83,166.82,0.06]
[1754380144779,67.55540351,166.83,166.82,0.06]
[1754380145088,66.89540351,166.83,166.82,0.06]
[1754380145288,78.48747793,166.83,166.82,0.06]
[1754380146006,67.03756508,166.83,166.82,0.06]
[1754380146507,84.48160368,166.83,166.82,0.06]
[1754380147016,41.10621557,166.81,166.79,0.06]
[1754380147220,41.10621557,166.81,166.77,0.06]
[1754380147221,41.10621557,166.78,166.77,0.06]
[1754380147388,52.69828999,166.78,166.77,0.06]
[1754380147812,56.67306314,166.78,166.77,0.06]
[1754380148016,62.66898591,166.78,166.77,0.06]
[1754380148211,70.53432427,166.78,166.77,0.06]
[1754380148710,70.53126446,166.78,166.77,0.06]
[1754380149129,80.53126446,166.78,166.77,0.06]
[1754380149502,124.67126446,166.78,166.77,0.06]
[1754380149917,0.14216157,166.72,166.65,16.99042074]
[1754380150131,0.14216157,166.72,166.65,17.65042074]
[1754380150132,25.89612842,166.7,166.65,17.65042074]
[1754380150334,15.10621557,166.67,166.65,0.86]
[1754380150916,15.10621557,166.67,166.65,6.86059143]
[1754380151137,15.10621557,166.67,166.66,0.66]
[1754380152030,15.10621557,166.67,166.65,6.20059143]
[1754380152218,15.10621557,166.67,166.65,6.86059143]
[1754380152737,15.10621557,166.67,166.66,0.66]
[1754380153323,15.10621557,166.67,166.66,17.45015285]
[1754380153844,15.10621557,166.67,166.65,16.99046163]
[1754380154047,15.10621557,166.67,166.66,10.78991285]
[1754380154222,15.10621557,166.67,166.66,11.44991285]
[1754380154530,15.10621557,166.67,166.65,16.99046163]
[1754380154959,15.10621557,166.67,166.65,17.65046163]
[1754380155332,10.93207442,166.71,166.66,17.45015285]
[1754380155537,59.24621557,166.71,166.69,10.78991285]
[1754380156140,59.24621557,166.71,166.69,0.66]
[1754380156348,59.24621557,166.71,166.69,11.44991285]
[1754380157249,59.24621557,166.71,166.69,10.78991285]
[1754380157554,0.80216157,166.7,166.66,16.79003357]
[1754380157852,15.10621557,166.68,166.66,16.79003357]
[1754380158229,15.10621557,166.68,166.66,6.00012072]
[1754380158953,15.10621557,166.68,166.66,16.79003357]
[1754380159259,15.10621557,166.68,166.67,10.78991285]
[1754380159441,44.14,166.69,166.67,11.44991285]
[1754380159644,44.14,166.69,166.68,10.78991285]
[1754380159956,15.10621557,166.7,166.68,11.44991285]
[1754380160139,15.10621557,166.7,166.69,11.44991285]
[1754380161047,15.10621557,166.7,166.69,16.78907296]
[1754380162045,8.51414427,166.72,166.69,119.94697325]
[1754380162241,8.51414427,166.72,166.71,10.78991285]
[1754380162453,8.51414427,166.72,166.71,11.44991285]
[1754380163240,8.51414427,166.72,166.71,17.44835325]
[1754380164466,8.51414427,166.72,166.71,16.78835325]